[Event "Israel Team Championship 2025"]
[Site "Israel"]
[Date "2025.01.17"]
[Round "3.22"]
[White "Bakalchuk, Johnatan"]
[Black "Soffer, Ram"]
[Result "0-1"]
[Annotator "TA"]
[ECO "A14"]
[WhiteElo "2445"]
[BlackElo "2423"]
[PlyCount "132"]
[EventDate "2025.01.07"]
[EventType "team-tourn"]
[EventCountry "ISR"]
[SourceTitle "playchess.com"]
[Source "ChessBase"]
[SourceQuality "1"]
[TimeControl "40/5400+30:1800+30"]

{[%evp 18,132,28,-4,14,25,55,43,49,55,60,64,76,76,65,47,46,20,43,15,30,39,33,37,56,43,75,95,66,58,55,36,65,50,58,11,58,60,72,69,89,78,72,62,66,10,12,11,25,30,12,0,0,0,0,0,0,0,0,-10,-8,-45,-15,-71,-80,-101,-97,-156,-113,-102,-51,-47,-57,-329,-238,-216,-216,-326,-315,-320,-326,-385,-353,-383,-372,-373,-366,-420,-415,-421,-412,-403,-423,-415,-292,-405,-415,-429,-419,-600,-574,-607,-307,-625,-625,-625,-625,-616,-557,-756,-767,-1300,-1166,-1905,-1871,-29982,-29984]} 1. c4 {[%emt 0:02:39]} e6 {[%emt 0:02:48]} 2. Nf3 {[%emt 0:00:34]} d5 {[%emt 0:00:21]} 3. b3 {[%emt 0:01:14]} Nf6 {[%emt 0:05:57]} 4. g3 {[%emt 0:00:06]} Be7 {[%emt 0:00:47]} 5. Bg2 {[%emt 0:00:05]} O-O {[%emt 0:00:05]} 6. O-O {[%emt 0:00:14]} a5 {[%emt 0:00:52]} 7. Bb2 {[%emt 0:04:41]} a4 {[%emt 0:02:57]} 8. Na3 {[%emt 0:00:21]} Nc6 {[%emt 0:04:51]} 9. d3 {[%emt 0:03:53]} Bd7 {[%emt 0:00:31]} 10. bxa4 {[%emt 0:26:17]} Na5 {[%emt 0:08:23]} 11. cxd5 {[%emt 0:05:22]} exd5 {[%emt 0:06:44]} 12. Nb5 {[%emt 0:01:29]} c6 {[%emt 0:00:40]} 13. Nc3 {[%emt 0:01:28]} Re8 {[%emt 0:02:19]} 14. Rb1 {[%emt 0:01:24]} Bc5 {[%emt 0:02:43]} 15. Ba1 {[%emt 0:05:35]} Bf5 {[%emt 0:02:15]} 16. Qc1 {[%emt 0:05:22]} Bf8 {[%emt 0:05:49]} 17. Qf4 {[%emt 0:04:00]} Bg6 {[%emt 0:08:15]} 18. h3 {[%emt 0:02:37]} Bd6 {[%emt 0:00:42]} 19. Qd2 {[%emt 0:01:45]} h6 {[%emt 0:00:35]} 20. Rfd1 {[%emt 0:03:03]} Qe7 {[%emt 0:06:56]} 21. e3 {[%emt 0:00:40]} Nd7 {[%emt 0:03:03]} 22. e4 {[%emt 0:05:22]} Nc5 {[%emt 0:05:14]} 23. Nh4 {[%emt 0:05:20]} (23. exd5 $5 Nxd3 24. Nh4 $16) 23... Bh7 {[%emt 0:01:22]} 24. Nf5 {[%emt 0:00:25]} Bxf5 {[%emt 0:00:34]} 25. exf5 {[%emt 0:00:02]} Nd7 {[%emt 0:01:31]} 26. h4 {[%emt 0:06:48]} (26. Re1 $14 Qd8 27. Nd1) 26... Nf6 {[%emt 0:02:48]} (26... Be5 $1 $11) 27. Re1 $14 {[%emt 0:00:23]} Qc7 {[%emt 0:02:01]} 28. Rxe8+ {[%emt 0:01:46]} Rxe8 {[%emt 0:00:31]} 29. Ne2 {[%emt 0:02:30]} Be5 {[%emt 0:00:38]} 30. Nd4 {[%emt 0:02:25]} b6 {[%emt 0:04:21]} 31. Nf3 {[%emt 0:05:05]} ({Better is} 31. Bb2 $14) 31... Bxa1 $11 {[%emt 0:00:21]} 32. Rxa1 {[%emt 0:00:00]} Nb7 {[%emt 0:02:36]} 33. Rb1 {[%emt 0:00:25]} Nc5 {[%emt 0:02:07]} 34. Qc2 {[%emt 0:00:21]} Ra8 {[%emt 0:03:20]} 35. Rb4 {[%emt 0:00:16]} Ncd7 {[%emt 0:01:24]} 36. d4 {[%emt 0:01:45]} Qd6 {[%emt 0:00:45]} 37. Rb1 {[%emt 0:00:19]} c5 {[%emt 0:01:08]} 38. Bf1 {[%emt 0:01:20]} c4 {[%emt 0:02:20]} 39. Rb5 {[%emt 0:00:37]} Ra5 {[%emt 0:03:36]} 40. Rxa5 {[%emt 0:01:59]} (40. Nd2 $11 {keeps the balance.}) 40... bxa5 $17 {[%emt 0:00:10]} 41. Be2 {[%emt 0:17:47]} Qb4 {[%emt 0:02:02]} 42. Nd2 {[%emt 0:01:41]} (42. Kg2 $142) 42... Nb6 {[%emt 0:02:01]} 43. Bd1 {[%emt 0:00:59] [#]} Nxa4 {[%emt 0:08:35]} (43... Nc8 $1 $17 {[%mdl 512]} 44. g4 Ne7 (44... Nd6 45. g5 $17)) 44. a3 $1 $15 {[%emt 0:02:36]} (44. Nxc4 $2 Qe1+ 45. Kg2 dxc4 46. Qxa4 Ne4 $19) 44... Qc3 {[%emt 0:00:25]} (44... Qxa3 45. Qxa4 Qxa4 46. Bxa4 $18) 45. g4 $2 {[%emt 0:06:44][%mdl 8192]} (45. Kf1 $15) 45... Qxc2 {[%emt 0:02:09]} 46. Bxc2 {[%emt 0:00:01]} Nc3 {[%emt 0:00:07]} 47. g5 {[%emt 0:01:34]} (47. f3 {was called for.}) 47... Ne2+ $19 {[%emt 0:01:14]} 48. Kf1 {[%emt 0:00:01]} Nxd4 {[%emt 0:00:01]} 49. Ba4 {[%emt 0:00:14]} Ng4 {[%emt 0:04:42]} 50. Nb1 {[%emt 0:00:52]} Nh2+ {[%emt 0:05:04]} 51. Kg2 {[%emt 0:00:45]} Nhf3 {[%emt 0:00:02]} 52. gxh6 {[%emt 0:01:33]} Nxh4+ {[%emt 0:00:43]} 53. Kg3 {[%emt 0:00:00]} Nhxf5+ {[%emt 0:02:03]} 54. Kf4 {[%emt 0:00:04]} f6 {[%emt 0:04:36]} (54... Nxh6 55. Ke5 Ne2 56. Kxd5 $17) (54... gxh6 55. Nc3 $19) 55. hxg7 {[%emt 0:01:34]} Ne7 {[%emt 0:00:50]} ({Much less strong is} 55... Kxg7 56. Nc3 Ne7 57. Nxd5 Nxd5+ 58. Ke4 $19) 56. Bd7 {[%emt 0:01:29]} Kxg7 {[%emt 0:00:57]} 57. Nc3 {[%emt 0:00:01]} Kf7 {[%emt 0:00:41]} 58. Bh3 {[%emt 0:00:44]} (58. Ke3 $142 Nb3 (58... Nc2+ $2 59. Kd2 $19) 59. Ne2) 58... Ne6+ $19 {[%emt 0:01:02]} 59. Kg3 {[%emt 0:00:02]} Nc5 {[%emt 0:01:45]} 60. Bf1 $2 {[%emt 0:00:17]} (60. Kf4) 60... Ke6 $19 {[%emt 0:00:24]} 61. Kf4 {[%emt 0:00:26]} Ng6+ {[%emt 0:00:25]} 62. Ke3 {[%emt 0:00:16]} Nb3 {[%emt 0:00:23]} 63. Ne2 {[%emt 0:01:51]} Kd6 {[%emt 0:00:22]} 64. f4 {[%emt 0:00:22]} Kc5 {[%emt 0:00:26]} 65. f5 {[%emt 0:00:19]} Ne5 {[%emt 0:00:12]} 66. Ng3 {[%emt 0:00:28]} c3 {[%emt 0:01:44]} 0-1

[Event "Israel Team Championship 2025"]
[Site "Israel"]
[Date "2025.01.17"]
[Round "3.23"]
[White "Lev, Ronen"]
[Black "Grinberg, Eyal"]
[Result "1-0"]
[Annotator "TA"]
[ECO "E35"]
[WhiteElo "2338"]
[BlackElo "2464"]
[PlyCount "49"]
[EventDate "2025.01.07"]
[EventType "team-tourn"]
[EventCountry "ISR"]
[SourceTitle "playchess.com"]
[Source "ChessBase"]
[SourceQuality "1"]
[TimeControl "40/5400+30:1800+30"]

{[%evp 10,49,21,-25,-24,-18,-25,-25,-26,-30,-33,-27,-29,-47,0,0,0,7,0,0,0,-7,0,0,-3,0,-2,0,0,0,-1,-1,0,0,13,0,176,161,173,171,960,955]} 1. d4 {[%emt 0:08:00]} Nf6 {[%emt 0:00:28]} 2. c4 {[%emt 0:00:09]} e6 {[%emt 0:00:11]} 3. Nc3 {[%emt 0:01:18]} Bb4 {[%emt 0:00:46]} 4. Qc2 {[%emt 0:00:05]} d5 {[%emt 0:01:16]} 5. cxd5 {[%emt 0:00:05]} exd5 {[%emt 0:00:06]} 6. a3 {[%emt 0:00:05]} (6. Bg5 $142) 6... Bxc3+ $11 {[%emt 0:03:51]} 7. Qxc3 {[%emt 0:00:01]} Ne4 {[%emt 0:02:22] Repels Bg5} 8. Qb3 {[%emt 0:03:41]} c5 {[%emt 0:03:59]} 9. dxc5 $1 {[%emt 0:08:34]} Nc6 {[%emt 0:01:47]} 10. Nf3 {[%emt 0:01:00]} O-O {[%emt 0:01:39][%cal Oc8g4]} 11. e3 {[%emt 0:00:48]} d4 {[%emt 0:08:23]} (11... Bg4 $15) 12. Qc2 {[%emt 0:04:49]} Qa5+ $1 {[%emt 0:21:44]} 13. Bd2 {[%emt 0:05:35]} Nxd2 {[%emt 0:00:29]} 14. Qxd2 {[%emt 0:00:06]} Qxc5 {[%emt 0:11:52]} 15. exd4 {[%emt 0:04:26]} Re8+ {[%emt 0:08:44]} 16. Be2 {[%emt 0:01:46]} Qb5 {[%emt 0:02:17]} 17. a4 $36 {[%emt 0:20:35][%mdl 2048] White is more active.} Qc4 {[%emt 0:04:46]} 18. Ra3 {[%emt 0:16:42]} Bg4 {[%emt 0:03:30]} 19. Re3 {[%emt 0:01:08]} Qxa4 {[%emt 0:01:19]} 20. O-O {[%emt 0:00:05]} Qb4 {[%emt 0:04:13] aiming for ...Qxd2.} 21. Rd1 {[%emt 0:01:40]} Rad8 {[%emt 0:04:07]} 22. h3 {[%emt 0:01:41]} Be6 $2 {[%emt 0:03:08] [#]} (22... Qxd2 $11 {and Black stays safe.} 23. Rxd2 Bxf3 24. Bxf3 Rxe3 25. fxe3 Rd7) 23. d5 $1 $18 {[%emt 0:07:13][%cal Bd4d5,Bd5e6][%mdl 544] Threatens to win with Qc1.} Qc5 {[%emt 0:03:13] [#]} (23... Bxd5 $2 24. Qxd5 Rf8 25. Qb3 $18) 24. Ng5 $1 {[%emt 0:05:11][%cal Od5e6]} (24. Rd3 Rxd5 25. Rxd5 Bxd5 (25... Qxd5 26. Qxd5 Bxd5 27. Rxd5 $15) 26. Qxd5 Qxd5 27. Rxd5 Rxe2 $16) 24... Nb4 $2 {[%emt 0:03:06]} (24... Qxd5 $2 {is the wrong capture.} 25. Qxd5 (25. Rd3 Qe5 $11) 25... Bxd5 26. Rxd5 $18) (24... h6) 25. dxe6 {[%emt 0:01:05]} ({Weaker is} 25. Nxe6 fxe6 26. d6 Nd5 $14) 1-0

[Event "Israel Team Championship 2025"]
[Site "Israel"]
[Date "2025.01.17"]
[Round "3.24"]
[White "Kochavi, Ori"]
[Black "Ganor, Dotan"]
[Result "1/2-1/2"]
[Annotator "TA"]
[ECO "C02"]
[WhiteElo "2377"]
[BlackElo "2243"]
[PlyCount "93"]
[EventDate "2025.01.07"]
[EventType "team-tourn"]
[EventCountry "ISR"]
[SourceTitle "playchess.com"]
[Source "ChessBase"]
[SourceQuality "1"]
[TimeControl "40/5400+30:1800+30"]

{[%evp 13,93,17,19,6,3,-2,23,24,12,21,27,0,0,-16,-8,-2,-12,-41,-33,-95,-91,-95,-90,-97,-111,-119,-66,-112,-122,-99,-60,-64,0,0,0,-74,-61,-76,0,0,142,62,55,30,25,0,8,0,0,0,20,0,0,0,0,0,0,0,0,0,0,0,0,-36,0,0,0,-61,0,-11,-15,-109,-105,-122,-111,-153,-43,-42,0,-163,0,-94]} 1. e4 {[%emt 0:03:04]} e6 {[%emt 0:01:58]} 2. d4 {[%emt 0:00:35]} d5 {[%emt 0:00:03]} 3. e5 {[%emt 0:00:03]} c5 {[%emt 0:00:33]} 4. c3 {[%emt 0:00:03]} Qb6 {[%emt 0:01:10]} 5. Nf3 {[%emt 0:00:39]} Bd7 {[%emt 0:02:14]} 6. Be2 {[%emt 0:04:39]} Bb5 {[%emt 0:03:19]} 7. dxc5 {[%emt 0:00:57]} Bxc5 {[%emt 0:10:11]} 8. Bxb5+ {[%emt 0:00:35]} Qxb5 {[%emt 0:00:03]} 9. b4 {[%emt 0:00:04]} Bf8 {[%emt 1:15:29]} 10. Na3 {[%emt 0:08:53]} Qd7 {[%emt 0:00:00]} 11. O-O {[%emt 0:03:59]} Nc6 {[%emt 0:00:00]} 12. Nc2 {[%emt 0:09:22]} Nge7 {[%emt 0:00:00]} 13. a4 {[%emt 0:05:02]} Ng6 {[%emt 0:00:00]} 14. Qe2 {[%emt 0:01:47]} Be7 {[%emt 0:00:00] Repels h4} 15. b5 {[%emt 0:13:55]} Na5 {[%emt 0:00:00]} 16. Ncd4 {[%emt 0:00:04]} ({White should try} 16. Be3 $15) 16... O-O $17 {[%emt 0:00:00]} 17. h4 {[%emt 0:01:32]} Bxh4 {[%emt 0:00:00]} 18. Nxh4 {[%emt 0:10:35]} Nxh4 {[%emt 0:00:00]} 19. Ba3 {[%emt 0:00:07]} Rfc8 {[%emt 0:00:00]} (19... Rfe8 $17 20. Qg4 Ng6) 20. Rad1 {[%emt 0:00:09]} (20. Bb4 $1 $15 Nc4 21. a5) 20... Nc4 {[%emt 0:00:00]} (20... Rxc3 21. Bb4 Rc4 22. Bxa5 $16) 21. Bc1 {[%emt 0:00:26]} Ng6 {[%emt 0:00:00][%cal Oc4b6] A dynamic duo of knights.} 22. f4 {[%emt 0:00:31]} Nb6 {[%emt 0:00:00]} (22... a6 $15 23. f5 exf5 (23... Ngxe5 24. fxe6 fxe6 25. Bf4 $15)) 23. f5 $11 {[%emt 0:08:10]} exf5 {[%emt 0:00:00]} 24. Rxf5 {[%emt 0:04:24]} (24. Nxf5 $11 Nxa4 25. Qg4 Qxb5 (25... Nxe5 26. Qxg7#) (25... Nxc3 $2 26. Nh6+ gxh6 27. Qxd7 $18) 26. e6 fxe6 (26... Rxc3 $2 27. exf7+ Kf8 28. Kh1 $18) 27. Nh6+ Kh8 (27... gxh6 28. Qxe6+ Kh8 29. Be3 $11) 28. Nf7+ Kg8 29. Nh6+) 24... Nxa4 {[%emt 0:00:00]} 25. Rdf1 $1 {[%emt 0:00:09]} Rf8 {[%emt 0:00:00]} (25... Rxc3 26. Rxf7 Qc8 27. Bd2 $18) (25... Qc7 $17 26. Qe3 Qb6 (26... Qxc3 27. Rxf7 Qxe3+ 28. Bxe3 $11) 27. Rxf7 Nxc3) 26. Ba3 {[%emt 0:01:57]} Qc7 {[%emt 0:00:12] [#]} 27. Bxf8 {[%emt 0:02:52]} (27. Qf2 $1 $16 Rfe8 28. Rxf7 (28. Bd6 Qb6 $16)) 27... Rxf8 $14 {[%emt 0:00:01]} 28. e6 {[%emt 0:06:42]} f6 $1 {[%emt 0:00:52]} 29. Rc1 {[%emt 0:01:36][%mdl 1024] White has compensation.} (29. Rxd5 Nxc3 (29... Qxc3 $2 30. e7 $18) 30. Qh5 Nxd5 31. Qxd5 Ne7 $17) 29... Ne7 {[%emt 0:03:21]} (29... Nxc3 $2 30. Qe3 Rc8 31. Rf3 $18) 30. Rf3 {[%emt 0:00:47]} Rc8 {[%emt 0:00:14]} 31. Qa2 {[%emt 0:02:32]} Nb6 {[%emt 0:02:17][%cal Ba4b6,Bb6c4,Bc4e5][%mdl 32]} 32. Re1 {[%emt 0:02:11]} (32. Qxa7 $2 Ra8 $19) 32... Ra8 {[%emt 0:00:52]} 33. Qf2 {[%emt 0:02:02]} Nc4 {[%emt 0:01:15]} 34. Rh3 {[%emt 0:02:09] Nf5 would now be deadly.} Ne5 {[%emt 0:00:48]} 35. Qh4 {[%emt 0:00:42] Chess con chili.} h6 {[%emt 0:00:11]} 36. Qh5 {[%emt 0:00:10]} Rf8 {[%emt 0:01:20]} 37. Rg3 {[%emt 0:01:18]} Kh8 {[%emt 0:00:16]} 38. Kh1 {[%emt 0:01:25]} a5 {[%emt 0:00:15]} 39. bxa6 $1 {[%emt 0:02:56]} bxa6 {[%emt 0:00:01]} 40. Ree3 {[%emt 0:00:52]} (40. Nf5 $11 Nxf5 41. Qxf5) 40... Rg8 {[%emt 0:02:23]} (40... a5 $15) 41. Re1 {[%emt 0:05:13]} a5 {[%emt 0:02:21]} 42. Qe2 {[%emt 0:03:55]} (42. Rh3 $11) 42... Ra8 $17 {[%emt 0:04:16]} 43. Rf1 {[%emt 0:06:56]} a4 {[%emt 0:04:38]} 44. Qf2 {[%emt 0:00:03]} Rf8 {[%emt 0:06:20]} ({Black should play} 44... a3 $17 45. Ra1 Nc4) 45. Ra1 $15 {[%emt 0:03:08]} Ra8 {[%emt 0:00:46]} (45... Rb8 $15) 46. Rf1 $19 {[%emt 0:02:01]} Rf8 {[%emt 0:06:02]} (46... a3 $19 {and ...Rb8 would now be decisive} 47. Ra1 Qb8) 47. Ra1 $1 {[%emt 0:02:08]} 1/2-1/2

[Event "Israel Team Championship 2025"]
[Site "Israel"]
[Date "2025.01.17"]
[Round "3.25"]
[White "Sokolovsky, Yahli"]
[Black "Gorshtein, Ido"]
[Result "1/2-1/2"]
[Annotator "TA"]
[ECO "B17"]
[WhiteElo "2535"]
[BlackElo "2565"]
[PlyCount "95"]
[EventDate "2025.01.07"]
[EventType "team-tourn"]
[EventCountry "ISR"]
[SourceTitle "playchess.com"]
[Source "ChessBase"]
[SourceQuality "1"]
[TimeControl "40/5400+30:1800+30"]

{[%evp 10,95,12,10,36,-24,3,-10,0,-7,8,0,0,0,0,0,17,16,22,34,27,27,29,18,27,-15,53,63,54,50,48,54,57,55,72,68,82,73,87,89,102,85,95,109,97,99,97,95,147,150,139,115,139,129,150,166,220,216,217,169,197,175,250,254,255,246,233,158,164,158,429,35,27,0,0,0,0,0,0,0,0,0,0,0,0,0,0,0]} 1. e4 {[%emt 0:00:02]} c6 {[%emt 0:04:21]} 2. d4 {[%emt 0:00:05]} d5 {[%emt 0:00:04]} 3. Nd2 {[%emt 0:00:04][%cal Bb1d2,Bd2e4,Be4g5][%mdl 32]} dxe4 {[%emt 0:00:17]} 4. Nxe4 {[%emt 0:00:05]} Nd7 {[%emt 0:00:06]} 5. Ng5 {[%emt 0:00:12]} Ngf6 {[%emt 0:00:22]} 6. Bd3 {[%emt 0:00:22]} e5 {[%emt 0:00:38]} 7. Qe2 {[%emt 0:11:47]} (7. N1f3 $14) 7... Qe7 {[%emt 0:08:29]} 8. N1f3 {[%emt 0:14:26]} exd4 {[%emt 0:09:41]} 9. Bc4 {[%emt 0:00:04]} Nd5 {[%emt 0:00:15]} 10. Bxd5 {[%emt 0:02:23]} cxd5 {[%emt 0:00:26]} 11. Nxd4 {[%emt 0:04:07][%cal Bf3d4,Bd4b5,Bb5c7][%mdl 32]} Qxe2+ {[%emt 0:15:54]} 12. Kxe2 {[%emt 0:00:01]} h6 {[%emt 0:00:08]} 13. Ngf3 {[%emt 0:02:27]} Bc5 {[%emt 0:06:32]} 14. Nb5 {[%emt 0:01:53] A dynamic duo of knights.} O-O {[%emt 0:04:14]} 15. Nc7 {[%emt 0:19:06][%csl LRa8,LRd5]} Rb8 {[%emt 0:00:15]} 16. Nxd5 {[%emt 0:01:27]} b6 {[%emt 0:05:28]} 17. c4 {[%emt 0:02:54]} Bb7 {[%emt 0:08:42]} (17... Re8+ $11 18. Be3 b5) 18. Rd1 $14 {[%emt 0:00:25]} Bxd5 {[%emt 0:02:09]} 19. Rxd5 {[%emt 0:03:43]} Nf6 {[%emt 0:00:14]} 20. Rd3 {[%emt 0:03:05]} Ng4 {[%emt 0:02:20]} 21. Be3 {[%emt 0:02:16]} Nxe3 {[%emt 0:00:10]} 22. fxe3 {[%emt 0:00:04][%cal Bf2e3,Be3e4,Be4e5][%mdl 32]} Rbe8 {[%emt 0:01:32]} 23. Rf1 {[%emt 0:10:41]} Re4 {[%emt 0:07:10]} 24. Nd2 {[%emt 0:00:14]} Rh4 {[%emt 0:00:08]} 25. h3 {[%emt 0:01:00]} Re8 {[%emt 0:00:17]} 26. Rf3 {[%emt 0:04:26]} Rd4 {[%emt 0:04:19]} 27. e4 {[%emt 0:02:34]} a5 {[%emt 0:02:12]} 28. Rf5 {[%emt 0:01:49]} g6 {[%emt 0:02:19] [#]} (28... Re6 $142) 29. Rd5 $1 $16 {[%emt 0:02:44]} Rxd5 {[%emt 0:00:50]} 30. Rxd5 {[%emt 0:00:45][%mdl 4096] Endgame KRB-KRN. White is a pawn up.} Bb4 {[%emt 0:03:57]} 31. e5 {[%emt 0:01:45]} Rc8 {[%emt 0:02:41]} 32. b3 {[%emt 0:00:29]} Bc5 {[%emt 0:02:56]} (32... Kf8 $142 33. Rb5 Bc5) 33. Ne4 $18 {[%emt 0:00:24]} Kf8 {[%emt 0:00:36]} 34. Nxc5 {[%emt 0:01:59]} bxc5 {[%emt 0:00:14] KR-KR. White is a pawn up.} 35. Kd3 {[%emt 0:04:16]} a4 {[%emt 0:01:34]} (35... Ke7 $142 36. Kc2 Ke6) 36. bxa4 {[%emt 0:02:14]} Ra8 {[%emt 0:00:07]} 37. Rxc5 {[%emt 0:00:01]} Rxa4 {[%emt 0:00:06]} 38. Rb5 {[%emt 0:01:41]} (38. Rc8+ Ke7 $11) 38... Rxa2 {[%emt 0:00:24]} 39. c5 {[%emt 0:01:14]} Ra1 $2 {[%emt 0:03:31]} (39... Ke7 $16 {is a better defense.} 40. g3 Ra3+ 41. Kd4 Rxg3) 40. Kd2 $2 {[%emt 0:00:42]} ({Better is} 40. Kd4 $18) 40... Ke7 $14 {[%emt 0:02:42]} 41. g4 {[%emt 0:18:34]} Kd7 {[%emt 0:07:59]} 42. Rb7+ {[%emt 0:02:59]} Ke6 {[%emt 0:00:12]} 43. c6 {[%emt 0:02:04]} Ra5 {[%emt 0:01:15] Wards off Rb5} 44. Rb3 {[%emt 0:07:42]} Rxe5 {[%emt 0:03:26]} 45. Rc3 {[%emt 0:00:01]} Rd5+ $1 {[%emt 0:00:08]} 46. Ke3 {[%emt 0:00:02] Threatening mate with c7.} (46. Ke2 $5 Rd8 $8 47. h4 $11 (47. Re3+ $2 Kd6 $17)) 46... Rd8 $1 {[%emt 0:00:05]} 47. Kf4 {[%emt 0:00:43] and g5 would now be decisive} (47. c7 $5 Rc8 $8 48. Ke4 $11) 47... Rd4+ {[%emt 0:07:30]} 48. Ke3 {[%emt 0:00:20]} (48. Kg3 $5 Rd8 $8 49. Kf4 $11) 1/2-1/2

[Event "Israel Team Championship 2025"]
[Site "Israel"]
[Date "2025.01.17"]
[Round "3.26"]
[White "Boruchovsky, Avital"]
[Black "Motylev, Alexander"]
[Result "0-1"]
[Annotator "TA"]
[ECO "D75"]
[WhiteElo "2532"]
[BlackElo "2596"]
[PlyCount "64"]
[EventDate "2025.01.07"]
[EventType "team-tourn"]
[EventCountry "ISR"]
[SourceTitle "playchess.com"]
[Source "ChessBase"]
[SourceQuality "1"]
[TimeControl "40/5400+30:1800+30"]

{[%evp 16,64,20,6,18,0,11,0,0,0,0,1,0,7,0,-27,-22,-29,-35,-69,-65,-95,-99,-97,-99,-192,-115,-109,-113,-243,-239,-284,-267,-285,-275,-281,-259,-277,-277,-209,-197,-209,-210,-697,-695,-770,-752,-29974,-1106,-29978,-29979]} 1. Nf3 {[%emt 0:05:12]} d5 {[%emt 0:00:06]} 2. g3 {[%emt 0:00:08]} c5 {[%emt 0:00:11]} 3. Bg2 {[%emt 0:00:20]} Nf6 {[%emt 0:00:05]} 4. O-O {[%emt 0:03:43]} g6 {[%emt 0:00:11]} 5. c4 {[%emt 0:06:33]} Bg7 {[%emt 0:00:09]} 6. d4 {[%emt 0:02:29]} cxd4 {[%emt 0:00:15]} 7. cxd5 {[%emt 0:00:53]} Nxd5 {[%emt 0:00:32]} 8. Nxd4 {[%emt 0:00:11]} O-O {[%emt 0:00:40]} 9. Nc3 {[%emt 0:02:42]} Nb6 {[%emt 0:00:18]} 10. e3 {[%emt 0:02:51]} Nc6 {[%emt 0:02:44]} 11. Nxc6 {[%emt 0:03:07]} bxc6 {[%emt 0:00:56][%cal Bb7c6,Bc6d5,Bd5d4][%mdl 32]} 12. Qc2 {[%emt 0:00:14]} Nd5 {[%emt 0:07:30]} 13. Nxd5 {[%emt 0:09:40]} cxd5 {[%emt 0:02:03]} 14. Rd1 {[%emt 0:00:04]} Be6 {[%emt 0:05:42]} 15. e4 {[%emt 0:09:41][%cal Re4d5]} d4 {[%emt 0:05:13]} 16. Bf4 {[%emt 0:03:26]} Qb6 {[%emt 0:19:41]} 17. Rd2 {[%emt 0:08:02]} Rac8 {[%emt 0:04:23]} 18. Qa4 {[%emt 0:01:49]} Rfd8 {[%emt 0:26:50]} 19. Qa3 {[%emt 0:07:34]} Rc5 {[%emt 0:02:00]} 20. Rad1 {[%emt 0:05:54]} (20. b4 $17 {might work better.} Rc3 21. Qb2) 20... Bg4 {[%emt 0:01:08]} (20... g5 $19 21. b4 Rb5 (21... Rc3 22. Qxc3 dxc3 23. Rxd8+ Bf8 24. Be3 $15)) 21. f3 $17 {[%emt 0:00:15]} Bd7 {[%emt 0:02:27]} 22. Rd3 {[%emt 0:04:09]} (22. Rf2 $17) 22... Bb5 $19 {[%emt 0:10:23]} 23. R3d2 {[%emt 0:07:45]} e5 {[%emt 0:03:54]} 24. Bg5 {[%emt 0:00:04]} f6 {[%emt 0:01:14]} 25. Be3 {[%emt 0:00:02]} Bf8 {[%emt 0:01:50]} 26. Bf2 {[%emt 0:02:58]} Kg7 {[%emt 0:01:29][%cal Oc5c3]} ({And not} 26... Rc3 27. Qxc3 dxc3 28. Rxd8 $14 (28. Bxb6 $2 {is the wrong capture.} Rxd2 29. Rc1 cxb2 $19)) 27. b4 {[%emt 0:02:57]} Rc4 {[%emt 0:00:27]} 28. Rb2 {[%emt 0:00:18]} Rdc8 {[%emt 0:00:39]} 29. Rb3 $2 {[%emt 0:00:59]} (29. Bf1 Rc3 30. Rb3 Rxb3 31. Qxb3) 29... Rc2 {[%emt 0:00:19][%cal Oc2f2] And now ...Rxf2! would win.} 30. Bf1 {[%emt 0:00:52] [#]} Rxf2 $1 {[%emt 0:00:36]} 31. Bxb5 {[%emt 0:01:12] [#]} (31. Qa5 Rxf1+) 31... Qxb5 $1 {[%emt 0:00:53]} 32. Qxa7+ {[%emt 0:00:03]} (32. Rb2 Rxb2) 32... Kg8 {[%emt 0:00:22]} 0-1